[Event "Titled Tuesday Blitz January 25 2022"]
[White "Vakhlamov, Igor L."]
[Black "Vovk, Orest"]
[WhiteFideId "24126748"]
[BlackFideId "14113490"]
[WhiteElo "2401"]
[BlackElo "2203"]
[Result "0-1"]
[Round "09"]
[TimeControl "180+1"]
[Date "2022.01.26"]
[WhiteClock "0:00:09"]
[BlackClock "0:00:11"]

1. e4 {[%clk 0:03:00]}  g5 {[%clk 0:02:58]} 2. d4 {[%clk 0:03:00]}  h6 {[%clk 0:02:59]} 3. h4 {[%clk 0:02:56]}  g4 {[%clk 0:02:59]} 4. Nc3 {[%clk 0:02:50]}  Bg7 {[%clk 0:02:58]} 5. Be3 {[%clk 0:02:46]}  d6 {[%clk 0:02:56]} 6. Nge2 {[%clk 0:02:40]}  c6 {[%clk 0:02:54]} 7. Ng3 {[%clk 0:02:33]}  Qa5 {[%clk 0:02:53]} 8. Bc4 {[%clk 0:02:30]}  Nf6 {[%clk 0:02:51]} 9. Qd2 {[%clk 0:02:29]}  b5 {[%clk 0:02:47]} 10. Bb3 {[%clk 0:02:29]}  Nbd7 {[%clk 0:02:41]} 11. Nf5 {[%clk 0:02:21]}  Bf8 {[%clk 0:02:38]} 12. f3 {[%clk 0:02:16]}  Nb6 {[%clk 0:02:26]} 13. Nxh6 {[%clk 0:01:59]}  gxf3 {[%clk 0:02:09]} 14. gxf3 {[%clk 0:01:59]}  b4 {[%clk 0:02:07]} 15. Ne2 {[%clk 0:01:55]}  d5 {[%clk 0:01:57]} 16. e5 {[%clk 0:01:42]}  Nh5 {[%clk 0:01:54]} 17. Ng4 {[%clk 0:01:30]}  Bf5 {[%clk 0:01:46]} 18. a3 {[%clk 0:01:23]}  e6 {[%clk 0:01:42]} 19. Bg5 {[%clk 0:01:19]}  Nc4 {[%clk 0:01:30]} 20. Bxc4 {[%clk 0:01:19]}  dxc4 {[%clk 0:01:30]} 21. Nf6+ {[%clk 0:01:19]}  Nxf6 {[%clk 0:01:27]} 22. Bxf6 {[%clk 0:01:20]}  Rg8 {[%clk 0:01:19]} 23. Kf2 {[%clk 0:01:20]}  c3 {[%clk 0:01:13]} 24. bxc3 {[%clk 0:01:21]}  bxa3 {[%clk 0:01:11]} 25. h5 {[%clk 0:01:09]}  Rb8 {[%clk 0:00:58]} 26. Ng3 {[%clk 0:00:51]}  Rxg3 {[%clk 0:00:49]} 27. Kxg3 {[%clk 0:00:50]}  Rb2 {[%clk 0:00:49]} 28. Qe2 {[%clk 0:00:33]}  Rxc2 {[%clk 0:00:37]} 29. Qc4 {[%clk 0:00:33]}  Qb5 {[%clk 0:00:35]} 30. Qxb5 {[%clk 0:00:19]}  cxb5 {[%clk 0:00:36]} 31. Rhb1 {[%clk 0:00:19]}  a6 {[%clk 0:00:30]} 32. Rb3 {[%clk 0:00:18]}  a2 {[%clk 0:00:27]} 33. Bg5 {[%clk 0:00:15]}  Kd7 {[%clk 0:00:23]} 34. Bc1 {[%clk 0:00:13]}  Kc6 {[%clk 0:00:20]} 35. Bb2 {[%clk 0:00:12]}  a5 {[%clk 0:00:17]} 36. Bc1 {[%clk 0:00:06]}  a4 {[%clk 0:00:15]} 37. Rb2 {[%clk 0:00:06]}  Rxb2 {[%clk 0:00:13]} 38. Bxb2 {[%clk 0:00:07]}  Bb1 {[%clk 0:00:13]} 39. Bc1 {[%clk 0:00:06]}  Kd5 {[%clk 0:00:12]} 40. Kf2 {[%clk 0:00:04]}  Kc4 {[%clk 0:00:12]} 41. h6 {[%clk 0:00:04]}  Bxh6 {[%clk 0:00:10]} 42. Bxh6 {[%clk 0:00:04]}  Kxc3 {[%clk 0:00:10]} 43. Bc1 {[%clk 0:00:04]}  b4 {[%clk 0:00:10]} 44. Ke2 {[%clk 0:00:03]}  Kc2 {[%clk 0:00:10]} 45. Bd2 {[%clk 0:00:02]}  b3 {[%clk 0:00:10]} 46. d5 {[%clk 0:00:03]}  exd5 {[%clk 0:00:09]} 47. f4 {[%clk 0:00:03]}  b2 {[%clk 0:00:10]} 48. Rxa2 {[%clk 0:00:03]}  Bxa2 {[%clk 0:00:10]} 49. f5 {[%clk 0:00:04]}  d4 {[%clk 0:00:09]} 50. e6 {[%clk 0:00:05]}  d3+ {[%clk 0:00:09]} 51. Ke3 {[%clk 0:00:05]}  fxe6 {[%clk 0:00:10]} 52. f6 {[%clk 0:00:06]}  e5 {[%clk 0:00:11]} 53. Bc3 {[%clk 0:00:06]}  b1=Q {[%clk 0:00:11]} 54. Ke4 {[%clk 0:00:07]}  Kxc3 {[%clk 0:00:11]} 55. Kxe5 {[%clk 0:00:08]}  d2 {[%clk 0:00:11]} 56. Kd6 {[%clk 0:00:09]}  d1=Q+ {[%clk 0:00:11]} 57. Ke7 {[%clk 0:00:10]}  Qb7+ {[%clk 0:00:11]} 58. Kf8 {[%clk 0:00:09]}  Qd8# {[%clk 0:00:11]} 0-1


[Site "https://www.chess.com"]

[Event "Titled Tuesday Blitz January 25 2022"]
[White "Vasquez Schroeder, Rodrigo"]
[Black "Yaksin, Oleg"]
[WhiteFideId "3400042"]
[BlackFideId "24105880"]
[WhiteElo "2568"]
[BlackElo "2256"]
[Result "1/2-1/2"]
[Round "09"]
[TimeControl "180+1"]
[Date "2022.01.26"]
[WhiteClock "0:00:59"]
[BlackClock "0:00:07"]

1. e4 {[%clk 0:03:00]}  c5 {[%clk 0:02:59]} 2. Nf3 {[%clk 0:03:00]}  d6 {[%clk 0:03:00]} 3. d4 {[%clk 0:03:00]}  cxd4 {[%clk 0:03:01]} 4. Nxd4 {[%clk 0:03:00]}  Nf6 {[%clk 0:03:00]} 5. Nc3 {[%clk 0:03:01]}  Nc6 {[%clk 0:03:00]} 6. Bg5 {[%clk 0:03:00]}  e6 {[%clk 0:03:00]} 7. Qd2 {[%clk 0:03:00]}  Be7 {[%clk 0:03:00]} 8. O-O-O {[%clk 0:03:00]}  Qb6 {[%clk 0:03:01]} 9. Nb3 {[%clk 0:02:45]}  O-O {[%clk 0:03:00]} 10. Be3 {[%clk 0:02:43]}  Qd8 {[%clk 0:02:41]} 11. f3 {[%clk 0:02:39]}  a6 {[%clk 0:02:41]} 12. g4 {[%clk 0:02:39]}  b5 {[%clk 0:02:34]} 13. g5 {[%clk 0:02:39]}  Nd7 {[%clk 0:02:34]} 14. h4 {[%clk 0:02:37]}  Nce5 {[%clk 0:01:59]} 15. Qf2 {[%clk 0:02:36]}  Qc7 {[%clk 0:01:55]} 16. h5 {[%clk 0:02:32]}  Nc4 {[%clk 0:01:14]} 17. Bxc4 {[%clk 0:02:30]}  bxc4 {[%clk 0:01:05]} 18. Nd4 {[%clk 0:02:30]}  Rb8 {[%clk 0:01:06]} 19. Kb1 {[%clk 0:02:24]}  d5 {[%clk 0:00:53]} 20. Ka1 {[%clk 0:02:22]}  dxe4 {[%clk 0:00:44]} 21. Nxe4 {[%clk 0:02:18]}  Bb7 {[%clk 0:00:34]} 22. Nc3 {[%clk 0:02:07]}  Bb4 {[%clk 0:00:30]} 23. g6 {[%clk 0:01:58]}  Bxc3 {[%clk 0:00:28]} 24. gxh7+ {[%clk 0:01:57]}  Kxh7 {[%clk 0:00:23]} 25. bxc3 {[%clk 0:01:58]}  Qa5 {[%clk 0:00:22]} 26. Bd2 {[%clk 0:01:52]}  Qa3 {[%clk 0:00:22]} 27. Rb1 {[%clk 0:01:51]}  Bd5 {[%clk 0:00:21]} 28. Rhg1 {[%clk 0:01:48]}  Nc5 {[%clk 0:00:19]} 29. Rxg7+ {[%clk 0:01:33]}  Kxg7 {[%clk 0:00:18]} 30. Qg3+ {[%clk 0:01:33]}  Kh7 {[%clk 0:00:16]} 31. Rxb8 {[%clk 0:01:34]}  Rxb8 {[%clk 0:00:13]} 32. Qxb8 {[%clk 0:01:33]}  Na4 {[%clk 0:00:12]} 33. Qb4 {[%clk 0:01:23]}  Qxb4 {[%clk 0:00:12]} 34. cxb4 {[%clk 0:01:24]}  e5 {[%clk 0:00:12]} 35. Nf5 {[%clk 0:01:20]}  Bxf3 {[%clk 0:00:12]} 36. Nd6 {[%clk 0:01:20]}  Bd5 {[%clk 0:00:12]} 37. c3 {[%clk 0:01:19]}  Be6 {[%clk 0:00:11]} 38. b5 {[%clk 0:01:16]}  axb5 {[%clk 0:00:11]} 39. Nxb5 {[%clk 0:01:17]}  f5 {[%clk 0:00:11]} 40. Nc7 {[%clk 0:01:18]}  Bf7 {[%clk 0:00:10]} 41. h6 {[%clk 0:01:17]}  f4 {[%clk 0:00:10]} 42. Nb5 {[%clk 0:01:16]}  Kxh6 {[%clk 0:00:09]} 43. Nd6 {[%clk 0:01:17]}  Be6 {[%clk 0:00:09]} 44. Kb1 {[%clk 0:01:16]}  Kg5 {[%clk 0:00:09]} 45. Kc1 {[%clk 0:01:17]}  Kg4 {[%clk 0:00:10]} 46. Kd1 {[%clk 0:01:17]}  Bd5 {[%clk 0:00:09]} 47. Ke1 {[%clk 0:01:17]}  e4 {[%clk 0:00:09]} 48. Ne8 {[%clk 0:01:10]}  Kf5 {[%clk 0:00:07]} 49. Ng7+ {[%clk 0:01:08]}  Ke5 {[%clk 0:00:06]} 50. Ke2 {[%clk 0:01:06]}  e3 {[%clk 0:00:07]} 51. Bxe3 {[%clk 0:01:06]}  fxe3 {[%clk 0:00:08]} 52. Kxe3 {[%clk 0:01:06]}  Nxc3 {[%clk 0:00:08]} 53. a3 {[%clk 0:01:06]}  Na4 {[%clk 0:00:08]} 54. Nh5 {[%clk 0:01:05]}  c3 {[%clk 0:00:07]} 55. Nf4 {[%clk 0:01:05]}  Be4 {[%clk 0:00:06]} 56. Ne2 {[%clk 0:01:05]}  c2 {[%clk 0:00:05]} 57. Kd2 {[%clk 0:01:06]}  Kd5 {[%clk 0:00:06]} 58. Ng3 {[%clk 0:01:02]}  Kd4 {[%clk 0:00:06]} 59. Nxe4 {[%clk 0:01:01]}  Kxe4 {[%clk 0:00:06]} 60. Kxc2 {[%clk 0:01:01]}  Kd4 {[%clk 0:00:07]} 61. Kb3 {[%clk 0:01:00]}  Nc5+ {[%clk 0:00:06]} 62. Kb4 {[%clk 0:01:01]}  Kd5 {[%clk 0:00:07]} 63. Kb5 {[%clk 0:01:00]}  Kd6 {[%clk 0:00:07]} 64. a4 {[%clk 0:00:59]}  Nxa4 {[%clk 0:00:07]} 1/2-1/2


[Site "https://www.chess.com"]

[Event "Titled Tuesday Blitz January 25 2022"]
[White "Vlassov, Nikolai"]
[Black "Pap, Gyula"]
[WhiteFideId "4103360"]
[BlackFideId "725323"]
[WhiteElo "2407"]
[BlackElo "2553"]
[Result "0-1"]
[Round "09"]
[TimeControl "180+1"]
[Date "2022.01.26"]
[WhiteClock "0:00:17"]
[BlackClock "0:00:06"]

1. e4 {[%clk 0:03:00]}  c6 {[%clk 0:02:59]} 2. d4 {[%clk 0:03:00]}  d5 {[%clk 0:03:00]} 3. e5 {[%clk 0:03:01]}  Bf5 {[%clk 0:03:00]} 4. Nc3 {[%clk 0:03:01]}  e6 {[%clk 0:02:58]} 5. g4 {[%clk 0:03:01]}  Bg6 {[%clk 0:02:58]} 6. Nge2 {[%clk 0:03:02]}  f6 {[%clk 0:02:59]} 7. Nf4 {[%clk 0:03:00]}  Bf7 {[%clk 0:02:59]} 8. Qe2 {[%clk 0:03:00]}  fxe5 {[%clk 0:02:39]} 9. dxe5 {[%clk 0:03:00]}  Ne7 {[%clk 0:02:23]} 10. g5 {[%clk 0:02:57]}  Ng6 {[%clk 0:02:14]} 11. h4 {[%clk 0:02:44]}  Nd7 {[%clk 0:02:09]} 12. Bh3 {[%clk 0:02:42]}  Qe7 {[%clk 0:01:58]} 13. Nd3 {[%clk 0:02:29]}  Nxh4 {[%clk 0:01:53]} 14. Bxe6 {[%clk 0:02:23]}  Ng2+ {[%clk 0:01:46]} 15. Kf1 {[%clk 0:02:23]}  Bxe6 {[%clk 0:01:39]} 16. Kxg2 {[%clk 0:02:22]}  O-O-O {[%clk 0:01:04]} 17. Bf4 {[%clk 0:02:16]}  Qf7 {[%clk 0:00:52]} 18. Bg3 {[%clk 0:02:14]}  Be7 {[%clk 0:00:48]} 19. f4 {[%clk 0:02:11]}  h6 {[%clk 0:00:44]} 20. gxh6 {[%clk 0:01:58]}  gxh6 {[%clk 0:00:41]} 21. Rag1 {[%clk 0:01:52]}  h5 {[%clk 0:00:40]} 22. Kf1 {[%clk 0:01:46]}  h4 {[%clk 0:00:38]} 23. Bf2 {[%clk 0:01:41]}  Bf5 {[%clk 0:00:31]} 24. a4 {[%clk 0:01:30]}  Kb8 {[%clk 0:00:30]} 25. b4 {[%clk 0:01:23]}  d4 {[%clk 0:00:24]} 26. Ne4 {[%clk 0:01:21]}  Qd5 {[%clk 0:00:20]} 27. Nec5 {[%clk 0:01:08]}  Nxc5 {[%clk 0:00:19]} 28. bxc5 {[%clk 0:01:01]}  h3 {[%clk 0:00:16]} 29. Rh2 {[%clk 0:00:47]}  Rdg8 {[%clk 0:00:16]} 30. Qd2 {[%clk 0:00:26]}  Rxg1+ {[%clk 0:00:14]} 31. Bxg1 {[%clk 0:00:26]}  Qf3+ {[%clk 0:00:14]} 32. Rf2 {[%clk 0:00:18]}  Qh1 {[%clk 0:00:08]} 33. Rh2 {[%clk 0:00:18]}  Qe4 {[%clk 0:00:07]} 34. Nf2 {[%clk 0:00:17]}  Qf3 {[%clk 0:00:04]} 35. Qe2 {[%clk 0:00:15]}  Qc3 {[%clk 0:00:04]} 36. Nd3 {[%clk 0:00:13]}  Qa1+ {[%clk 0:00:04]} 37. Kf2 {[%clk 0:00:13]}  Qxa4 {[%clk 0:00:04]} 38. Kf3 {[%clk 0:00:10]}  Qc4 {[%clk 0:00:04]} 39. Qf2 {[%clk 0:00:08]}  Qd5+ {[%clk 0:00:04]} 40. Ke2 {[%clk 0:00:08]}  a5 {[%clk 0:00:04]} 41. Kd2 {[%clk 0:00:09]}  a4 {[%clk 0:00:04]} 42. Qxd4 {[%clk 0:00:09]}  Qxd4 {[%clk 0:00:01]} 43. Bxd4 {[%clk 0:00:10]}  Rg8 {[%clk 0:00:02]} 44. Ke3 {[%clk 0:00:10]}  a3 {[%clk 0:00:02]} 45. Nb4 {[%clk 0:00:08]}  Rg2 {[%clk 0:00:02]} 46. Rxg2 {[%clk 0:00:08]}  hxg2 {[%clk 0:00:03]} 47. Kf2 {[%clk 0:00:08]}  Bh4+ {[%clk 0:00:01]} 48. Kxg2 {[%clk 0:00:08]}  Be1 {[%clk 0:00:02]} 49. Kf3 {[%clk 0:00:08]}  Bxb4 {[%clk 0:00:01]} 50. Ba1 {[%clk 0:00:09]}  Bxc5 {[%clk 0:00:01]} 51. Ke2 {[%clk 0:00:09]}  Be7 {[%clk 0:00:02]} 52. c4 {[%clk 0:00:09]}  Kc8 {[%clk 0:00:02]} 53. Kd2 {[%clk 0:00:09]}  b5 {[%clk 0:00:02]} 54. Kc3 {[%clk 0:00:09]}  b4+ {[%clk 0:00:03]} 55. Kb3 {[%clk 0:00:10]}  c5 {[%clk 0:00:04]} 56. e6 {[%clk 0:00:08]}  Bxe6 {[%clk 0:00:03]} 57. Be5 {[%clk 0:00:09]}  Kd7 {[%clk 0:00:03]} 58. f5 {[%clk 0:00:10]}  Bxf5 {[%clk 0:00:03]} 59. Ka2 {[%clk 0:00:10]}  Bd3 {[%clk 0:00:03]} 60. Kb3 {[%clk 0:00:10]}  Bd6 {[%clk 0:00:03]} 61. Bf6 {[%clk 0:00:11]}  Bf5 {[%clk 0:00:03]} 62. Bg7 {[%clk 0:00:11]}  Ke6 {[%clk 0:00:03]} 63. Bh6 {[%clk 0:00:10]}  Be5 {[%clk 0:00:03]} 64. Bc1 {[%clk 0:00:10]}  Bd4 {[%clk 0:00:03]} 65. Bxa3 {[%clk 0:00:11]}  bxa3 {[%clk 0:00:04]} 66. Kxa3 {[%clk 0:00:12]}  Bd3 {[%clk 0:00:04]} 67. Kb3 {[%clk 0:00:12]}  Ke5 {[%clk 0:00:04]} 68. Ka4 {[%clk 0:00:13]}  Bxc4 {[%clk 0:00:04]} 69. Ka5 {[%clk 0:00:13]}  Bd3 {[%clk 0:00:04]} 70. Kb6 {[%clk 0:00:14]}  c4+ {[%clk 0:00:05]} 71. Kb5 {[%clk 0:00:15]}  c3+ {[%clk 0:00:05]} 72. Kb4 {[%clk 0:00:15]}  c2 {[%clk 0:00:06]} 73. Kb3 {[%clk 0:00:16]}  c1=Q {[%clk 0:00:06]} 74. Kb4 {[%clk 0:00:17]}  Qc5+ {[%clk 0:00:06]} 75. Ka4 {[%clk 0:00:17]}  Qb5+ {[%clk 0:00:06]} 76. Ka3 {[%clk 0:00:17]}  Bc5+ {[%clk 0:00:06]} 0-1


[Site "https://www.chess.com"]

[Event "Titled Tuesday Blitz January 25 2022"]
[White "Vokhidov, Shamsiddin"]
[Black "Petesch, Gabriel"]
[WhiteFideId "14204223"]
[BlackFideId "2032465"]
[WhiteElo "2611"]
[BlackElo "2374"]
[Result "1-0"]
[Round "09"]
[TimeControl "180+1"]
[Date "2022.01.26"]
[WhiteClock "0:01:15"]
[BlackClock "0:00:05"]

1. e4 {[%clk 0:03:00]}  d6 {[%clk 0:02:52]} 2. d4 {[%clk 0:03:01]}  e5 {[%clk 0:02:48]} 3. dxe5 {[%clk 0:03:00]}  dxe5 {[%clk 0:02:48]} 4. Qxd8+ {[%clk 0:03:01]}  Kxd8 {[%clk 0:02:49]} 5. f4 {[%clk 0:03:00]}  exf4 {[%clk 0:02:43]} 6. Bxf4 {[%clk 0:03:01]}  c6 {[%clk 0:02:43]} 7. Nc3 {[%clk 0:03:00]}  Ke8 {[%clk 0:02:40]} 8. O-O-O {[%clk 0:02:59]}  Ne7 {[%clk 0:02:35]} 9. Nf3 {[%clk 0:02:58]}  Ng6 {[%clk 0:02:35]} 10. Bg3 {[%clk 0:02:59]}  Bb4 {[%clk 0:02:31]} 11. Bc4 {[%clk 0:02:58]}  Be6 {[%clk 0:02:19]} 12. Bxe6 {[%clk 0:02:54]}  fxe6 {[%clk 0:02:20]} 13. Ne2 {[%clk 0:02:51]}  Bc5 {[%clk 0:02:09]} 14. Ned4 {[%clk 0:02:49]}  Ke7 {[%clk 0:02:06]} 15. Nb3 {[%clk 0:02:38]}  Be3+ {[%clk 0:02:03]} 16. Kb1 {[%clk 0:02:39]}  Bf4 {[%clk 0:01:45]} 17. Bxf4 {[%clk 0:02:10]}  Nxf4 {[%clk 0:01:44]} 18. Ne5 {[%clk 0:02:11]}  Ng6 {[%clk 0:01:32]} 19. Nxg6+ {[%clk 0:02:06]}  hxg6 {[%clk 0:01:33]} 20. Rd3 {[%clk 0:02:05]}  Nd7 {[%clk 0:01:30]} 21. Na5 {[%clk 0:01:58]}  Rab8 {[%clk 0:01:20]} 22. Nc4 {[%clk 0:01:52]}  Rh4 {[%clk 0:01:08]} 23. Rhd1 {[%clk 0:01:37]}  Nc5 {[%clk 0:01:03]} 24. Rg3 {[%clk 0:01:36]}  Rxe4 {[%clk 0:00:41]} 25. b3 {[%clk 0:01:36]}  Rf8 {[%clk 0:00:19]} 26. Rxg6 {[%clk 0:01:34]}  Kf7 {[%clk 0:00:04]} 27. Rg5 {[%clk 0:01:34]}  Rxc4 {[%clk 0:00:03]} 28. bxc4 {[%clk 0:01:30]}  b6 {[%clk 0:00:03]} 29. Rf1+ {[%clk 0:01:28]}  Kg8 {[%clk 0:00:04]} 30. Rxf8+ {[%clk 0:01:28]}  Kxf8 {[%clk 0:00:04]} 31. Kc1 {[%clk 0:01:26]}  Kf7 {[%clk 0:00:05]} 32. h4 {[%clk 0:01:24]}  Kf6 {[%clk 0:00:05]} 33. Rg4 {[%clk 0:01:20]}  g6 {[%clk 0:00:04]} 34. Kd2 {[%clk 0:01:18]}  e5 {[%clk 0:00:04]} 35. Ke3 {[%clk 0:01:17]}  Kf5 {[%clk 0:00:04]} 36. Rg5+ {[%clk 0:01:16]}  Kf6 {[%clk 0:00:05]} 37. Rg3 {[%clk 0:01:15]}  e4 {[%clk 0:00:03]} 38. Rg5 {[%clk 0:01:14]}  Ne6 {[%clk 0:00:02]} 39. Rg4 {[%clk 0:01:14]}  Nc5 {[%clk 0:00:02]} 40. Rxe4 {[%clk 0:01:13]}  Nxe4 {[%clk 0:00:02]} 41. Kxe4 {[%clk 0:01:14]}  g5 {[%clk 0:00:02]} 42. hxg5+ {[%clk 0:01:13]}  Kxg5 {[%clk 0:00:02]} 43. Ke5 {[%clk 0:01:14]}  Kg4 {[%clk 0:00:02]} 44. Kd6 {[%clk 0:01:13]}  b5 {[%clk 0:00:03]} 45. c5 {[%clk 0:01:13]}  b4 {[%clk 0:00:03]} 46. Kxc6 {[%clk 0:01:13]}  a5 {[%clk 0:00:04]} 47. Kb5 {[%clk 0:01:14]}  b3 {[%clk 0:00:04]} 48. cxb3 {[%clk 0:01:14]}  a4 {[%clk 0:00:04]} 49. c6 {[%clk 0:01:15]}  a3 {[%clk 0:00:05]} 1-0


[Site "https://www.chess.com"]

[Event "Titled Tuesday Blitz January 25 2022"]
[White "Zong, Davis"]
[Black "Golubev, Mikhail"]
[WhiteFideId "30903955"]
[BlackFideId "14100983"]
[WhiteElo "2061"]
[BlackElo "2374"]
[Result "1/2-1/2"]
[Round "09"]
[TimeControl "180+1"]
[Date "2022.01.26"]
[WhiteClock "0:00:24"]
[BlackClock "0:00:13"]

1. d4 {[%clk 0:02:55]}  Nf6 {[%clk 0:02:59]} 2. c4 {[%clk 0:02:54]}  g6 {[%clk 0:02:59]} 3. Nc3 {[%clk 0:02:54]}  Bg7 {[%clk 0:03:00]} 4. e4 {[%clk 0:02:52]}  d6 {[%clk 0:02:59]} 5. Nf3 {[%clk 0:02:52]}  O-O {[%clk 0:02:59]} 6. Be2 {[%clk 0:02:52]}  e5 {[%clk 0:02:58]} 7. O-O {[%clk 0:02:52]}  Nc6 {[%clk 0:02:57]} 8. d5 {[%clk 0:02:52]}  Ne7 {[%clk 0:02:58]} 9. b4 {[%clk 0:02:53]}  Ne8 {[%clk 0:02:55]} 10. c5 {[%clk 0:02:52]}  f5 {[%clk 0:02:55]} 11. Ng5 {[%clk 0:02:47]}  h6 {[%clk 0:02:53]} 12. Ne6 {[%clk 0:02:46]}  Bxe6 {[%clk 0:02:53]} 13. dxe6 {[%clk 0:02:47]}  fxe4 {[%clk 0:02:53]} 14. cxd6 {[%clk 0:02:45]}  Nxd6 {[%clk 0:02:53]} 15. Qc2 {[%clk 0:02:39]}  Nc6 {[%clk 0:02:09]} 16. Nxe4 {[%clk 0:02:26]}  Nd4 {[%clk 0:02:09]} 17. Qd3 {[%clk 0:02:24]}  Nxe4 {[%clk 0:02:07]} 18. Qxe4 {[%clk 0:02:24]}  Nxe2+ {[%clk 0:02:05]} 19. Qxe2 {[%clk 0:02:22]}  Qd5 {[%clk 0:01:32]} 20. e7 {[%clk 0:02:11]}  Rfe8 {[%clk 0:01:26]} 21. Qc2 {[%clk 0:02:08]}  e4 {[%clk 0:01:13]} 22. Rd1 {[%clk 0:02:02]}  Qf7 {[%clk 0:00:58]} 23. Bb2 {[%clk 0:01:56]}  Bxb2 {[%clk 0:00:57]} 24. Qxb2 {[%clk 0:01:57]}  Rxe7 {[%clk 0:00:58]} 25. Qd2 {[%clk 0:01:39]}  Rf8 {[%clk 0:00:47]} 26. Rac1 {[%clk 0:01:29]}  Kh7 {[%clk 0:00:36]} 27. h3 {[%clk 0:01:11]}  a6 {[%clk 0:00:33]} 28. Rc3 {[%clk 0:01:10]}  Qf6 {[%clk 0:00:30]} 29. Rdc1 {[%clk 0:01:06]}  c6 {[%clk 0:00:28]} 30. Rc4 {[%clk 0:00:57]}  Ref7 {[%clk 0:00:23]} 31. Rxe4 {[%clk 0:00:53]}  Qxf2+ {[%clk 0:00:23]} 32. Qxf2 {[%clk 0:00:54]}  Rxf2 {[%clk 0:00:23]} 33. Re7+ {[%clk 0:00:52]}  R2f7 {[%clk 0:00:22]} 34. Rce1 {[%clk 0:00:52]}  Kg7 {[%clk 0:00:23]} 35. Kh2 {[%clk 0:00:46]}  Rxe7 {[%clk 0:00:23]} 36. Rxe7+ {[%clk 0:00:46]}  Rf7 {[%clk 0:00:24]} 37. Re2 {[%clk 0:00:43]}  g5 {[%clk 0:00:24]} 38. Kg3 {[%clk 0:00:42]}  Kg6 {[%clk 0:00:23]} 39. Re6+ {[%clk 0:00:40]}  Kf5 {[%clk 0:00:22]} 40. Re8 {[%clk 0:00:38]}  Rd7 {[%clk 0:00:20]} 41. Rf8+ {[%clk 0:00:35]}  Kg6 {[%clk 0:00:20]} 42. Rb8 {[%clk 0:00:31]}  h5 {[%clk 0:00:17]} 43. Kf3 {[%clk 0:00:31]}  Rf7+ {[%clk 0:00:16]} 44. Ke3 {[%clk 0:00:30]}  h4 {[%clk 0:00:14]} 45. a4 {[%clk 0:00:29]}  Kf5 {[%clk 0:00:14]} 46. Kf3 {[%clk 0:00:23]}  Kg6+ {[%clk 0:00:13]} 47. Ke3 {[%clk 0:00:24]}  Kf5 {[%clk 0:00:13]} 48. Kf3 {[%clk 0:00:23]}  Kg6+ {[%clk 0:00:13]} 49. Ke3 {[%clk 0:00:24]} 1/2-1/2


[Site "https://www.chess.com"]

[Event "Titled Tuesday Blitz January 25 2022"]
[White "Aaditya Dhingra"]
[Black "Yurovskykh, Oleksandr"]
[WhiteFideId "25678191"]
[BlackFideId "14134020"]
[WhiteElo "1789"]
[BlackElo "2292"]
[Result "1-0"]
[Round "10"]
[TimeControl "180+1"]
[Date "2022.01.26"]
[WhiteClock "0:00:15"]
[BlackClock "0:00:21"]

1. e4 {[%clk 0:03:00]}  c5 {[%clk 0:02:49]} 2. Nf3 {[%clk 0:03:00]}  Nc6 {[%clk 0:02:48]} 3. d4 {[%clk 0:03:00]}  cxd4 {[%clk 0:02:48]} 4. Nxd4 {[%clk 0:03:00]}  Nxd4 {[%clk 0:02:49]} 5. Qxd4 {[%clk 0:02:59]}  d6 {[%clk 0:02:47]} 6. c4 {[%clk 0:02:52]}  Nf6 {[%clk 0:02:43]} 7. Nc3 {[%clk 0:02:52]}  e6 {[%clk 0:02:41]} 8. Bg5 {[%clk 0:02:42]}  Be7 {[%clk 0:02:41]} 9. O-O-O {[%clk 0:02:40]}  Qa5 {[%clk 0:02:35]} 10. Bxf6 {[%clk 0:02:30]}  gxf6 {[%clk 0:02:16]} 11. Nb5 {[%clk 0:02:24]}  Bd7 {[%clk 0:02:13]} 12. Nxd6+ {[%clk 0:02:21]}  Bxd6 {[%clk 0:02:14]} 13. Qxd6 {[%clk 0:02:20]}  O-O-O {[%clk 0:02:15]} 14. Qa3 {[%clk 0:02:04]}  Qxa3 {[%clk 0:02:08]} 15. bxa3 {[%clk 0:02:03]}  Bc6 {[%clk 0:02:09]} 16. f3 {[%clk 0:02:03]}  Rxd1+ {[%clk 0:02:06]} 17. Kxd1 {[%clk 0:02:02]}  Kc7 {[%clk 0:02:06]} 18. Be2 {[%clk 0:02:00]}  Rd8+ {[%clk 0:02:01]} 19. Kc2 {[%clk 0:02:00]}  Kb6 {[%clk 0:02:02]} 20. Kc3 {[%clk 0:01:59]}  Kc5 {[%clk 0:02:01]} 21. Rd1 {[%clk 0:01:56]}  Rg8 {[%clk 0:01:45]} 22. g3 {[%clk 0:01:55]}  h5 {[%clk 0:01:43]} 23. Bd3 {[%clk 0:01:31]}  h4 {[%clk 0:01:39]} 24. g4 {[%clk 0:01:28]}  e5 {[%clk 0:01:33]} 25. Bc2 {[%clk 0:01:24]}  b6 {[%clk 0:01:30]} 26. h3 {[%clk 0:01:20]}  Rh8 {[%clk 0:01:29]} 27. a4 {[%clk 0:01:17]}  a5 {[%clk 0:01:28]} 28. Rd2 {[%clk 0:01:13]}  Re8 {[%clk 0:01:27]} 29. Bb3 {[%clk 0:01:11]}  Rc8 {[%clk 0:00:56]} 30. a3 {[%clk 0:01:05]}  Rh8 {[%clk 0:00:55]} 31. Rd3 {[%clk 0:01:05]}  Rg8 {[%clk 0:00:55]} 32. Rd2 {[%clk 0:01:04]}  f5 {[%clk 0:00:54]} 33. exf5 {[%clk 0:00:34]}  Bxf3 {[%clk 0:00:53]} 34. Bc2 {[%clk 0:00:34]}  Bc6 {[%clk 0:00:51]} 35. Re2 {[%clk 0:00:33]}  f6 {[%clk 0:00:51]} 36. Be4 {[%clk 0:00:32]}  Bxa4 {[%clk 0:00:50]} 37. Rd2 {[%clk 0:00:30]}  Bc6 {[%clk 0:00:39]} 38. Bxc6 {[%clk 0:00:29]}  Kxc6 {[%clk 0:00:40]} 39. Rd5 {[%clk 0:00:28]}  Re8 {[%clk 0:00:40]} 40. Kd3 {[%clk 0:00:27]}  Rg8 {[%clk 0:00:35]} 41. a4 {[%clk 0:00:26]}  Kc7 {[%clk 0:00:35]} 42. Ke4 {[%clk 0:00:25]}  Kc6 {[%clk 0:00:35]} 43. Ke3 {[%clk 0:00:23]}  Rf8 {[%clk 0:00:27]} 44. Ke4 {[%clk 0:00:18]}  Rf7 {[%clk 0:00:28]} 45. g5 {[%clk 0:00:15]}  fxg5 {[%clk 0:00:26]} 46. Rxe5 {[%clk 0:00:15]}  Kd6 {[%clk 0:00:23]} 47. Re6+ {[%clk 0:00:14]}  Kc5 {[%clk 0:00:23]} 48. f6 {[%clk 0:00:14]}  Kxc4 {[%clk 0:00:20]} 49. Kf5 {[%clk 0:00:14]}  Kb4 {[%clk 0:00:19]} 50. Rxb6+ {[%clk 0:00:14]}  Kxa4 {[%clk 0:00:20]} 51. Kxg5 {[%clk 0:00:14]}  Ka3 {[%clk 0:00:20]} 52. Kxh4 {[%clk 0:00:14]}  a4 {[%clk 0:00:19]} 53. Kg5 {[%clk 0:00:14]}  Ka2 {[%clk 0:00:19]} 54. Kg6 {[%clk 0:00:14]}  Rf8 {[%clk 0:00:19]} 55. f7 {[%clk 0:00:14]}  a3 {[%clk 0:00:19]} 56. Kg7 {[%clk 0:00:14]}  Ra8 {[%clk 0:00:19]} 57. f8=Q {[%clk 0:00:14]}  Rxf8 {[%clk 0:00:19]} 58. Kxf8 {[%clk 0:00:14]}  Ka1 {[%clk 0:00:20]} 59. Ra6 {[%clk 0:00:15]}  a2 {[%clk 0:00:21]} 60. Rxa2+ {[%clk 0:00:14]}  Kxa2 {[%clk 0:00:21]} 61. h4 {[%clk 0:00:15]} 1-0


[Site "https://www.chess.com"]